Workbook

Sheet Cover page
G13: =Name_Model -> FGN 5M Solar Connections Facility - SHS
A15: =Names!E9 -> [Insert Company Name]
A17: =Names!E10 -> [Insert Project Name, Location]

Sheet Dashboard
C1: =Name_Model -> FGN 5M Solar Connections Facility - SHS
C3: Dashboard
A5: ● | C5: Model Information
C7: Company name | D7: =Names!E9 -> [Insert Company Name] | I7: Model checks
C8: Model name | D8: =CONCATENATE(Names!E9," ",Name_Model) -> [Insert Company Name] FGN 5M Solar Connections Facility - SHS | I8: Model balances | K8: =Model!P74 -> 0
C9: Location | D9: LGA, State, Nigeria | I9: Cash balance always positive | K9: =Model!O103 -> 0
I10: Inputs correct | K10: =Inputs!E160 -> 0
I11: Operating Scenario | K11: =Inputs!E25 -> Base
A14: ● | C14: Key Outputs | N14: Graphs
C17: Financial Statements
C18: Income statement key outputs | G18: =Start_Year -> 2020 | H18: =G18+1 -> 2021 | I18: =H18+1 -> 2022 | J18: 2023 | K18: 2024 | L18: 2025
C19: Revenue | D19: =Inputs!$E$9 -> USD | G19: =Model!I16 -> 890000 | H19: =Model!J16 -> 1246000 | I19: =Model!K16 -> 1682100 | J19: =Model!L16 -> 2186730 | K19: =Model!M16 -> 2842749 | L19: =Model!N16 -> 3411298.8
C20: Operating Expenses (inc VAT) | D20: =Inputs!$E$9 -> USD | G20: =Model!I25+Model!I27 -> -100216.25 | H20: =Model!J25+Model!J27 -> -141044.25 | I20: =Model!K25+Model!K27 -> -189518.545 | J20: =Model!L25+Model!L27 -> -257252.4139 | K20: =Model!M25+Model!M27 -> -335537.1911 | L20: =Model!N25+Model!N27 -> -414033.2741
C21: EBITDA | D21: =Inputs!$E$9 -> USD | G21: =Model!I29 -> 166608.75 | H21: =Model!J29 -> 232510.75 | I21: =Model!K29 -> 314780.705 | J21: =Model!L29 -> 398336.6111 | K21: =Model!M29 -> 516728.5414 | L21: =Model!N29 -> 608685.6049
C22: Net Income | D22: =Inputs!$E$9 -> USD | G22: =Model!I42 -> 111389.95 | H22: =Model!J42 -> 156648.71 | I22: =Model!K42 -> 212705.0838 | J22: =Model!L42 -> 269771.7708 | K22: =Model!M42 -> 350770.4959 | L22: =Model!N42 -> 413361.7903
C23: Profit margin | D23: % | E23: =SUM(G22:K22)/SUM(G19:K19) -> 0.124473148 | G23: =G22/G19 -> 0.1251572472 | H23: =H22/H19 -> 0.1257212761 | I23: 0.1264521038 | J23: 0.1233676635 | K23: 0.1233913004 | L23: =L22/L19 -> 0.1211743135
C25: Balance sheet key outputs
C26: Cash balance | D26: =Inputs!$E$9 -> USD | G26: =Model!I48 -> 122605.087 | H26: =Model!J48 -> 225678.7407 | I26: =Model!K48 -> 378597.9148 | J26: =Model!L48 -> 585142.1121 | K26: =Model!M48 -> 857071.3948 | L26: =Model!N48 -> 1210925.37
C27: Debt | D27: =Inputs!$E$9 -> USD | G27: =Model!I64 -> 84146.57534 | H27: =Model!J64 -> 85305.20548 | I27: =Model!K64 -> 89537.0274 | J27: =Model!L64 -> 96398.13562 | K27: =Model!M64 -> 109067.5763 | L27: =Model!N64 -> 130881.0916
C28: Equity | D28: =Inputs!$E$9 -> USD | G28: =Model!I70 -> 166514.95 | H28: =Model!J70 -> 323163.66 | I28: =Model!K70 -> 535868.7438 | J28: =Model!L70 -> 805640.5146 | K28: =Model!M70 -> 1156411.011 | L28: =Model!N70 -> 1569772.801
C29: Debt:equity ratio | D29: multiple | G29: =G27/G28 -> 0.5053394626 | H29: =H27/H28 -> 0.2639690536 | I29: =I27/I28 -> 0.1670876095 | J29: =J27/J28 -> 0.1196540316 | K29: =K27/K28 -> 0.09431558097 | L29: =L27/L28 -> 0.08337581814
AF32: DO NOT DELETE
AF33: =Model!F195 -> 0 | AG33: Upside | AH33: Downside | AI33: Base

Sheet Inputs
B1: Input Sheet | C1: =Name_Model -> FGN 5M Solar Connections Facility - SHS
C3: Inputs
A5: ● | C5: Timing
C6: Start
C7: Model Start Date | D7: Date | E7: 2020-01-01
C8: Model Start Year | D8: Date | E8: =YEAR(E7) -> 2020
C9: Model Currency | D9: USD/NGN | E9: USD | P9: USD
P10: NGN
A23: ● | C23: Operating Scenario
C25: Operating Scenario | D25: Name | E25: Base
A27: ● | C27: COGS assumptions
C29: Product 1 | G29: NGN Inputs
C30: System name | D30: Name
C31: System cost | D31: =$E$9 -> USD | E31: =IF($E$9="NGN",G31,(G31/$E$202)) -> 175 | G31: 70000
C32: Shipping cost | D32: =$E$9 -> USD | E32: =IF($E$9="NGN",G32,(G32/$E$202)) -> 8.75 | G32: 3500
C33: Installation cost | D33: % module cost | E33: 0.05
C34: Total COGS | D34: =$E$9 -> USD | E34: =SUM(E31:E32)*E33+(E31+E32) -> 192.9375
C36: Product 2
C37: System name | D37: Name
C38: System cost | D38: =$E$9 -> USD | E38: =IF($E$9="NGN",G38,(G38/$E$202)) -> 450 | G38: 180000
C39: Shipping cost | D39: =$E$9 -> USD | E39: =IF($E$9="NGN",G39,(G39/$E$202)) -> 16.25 | G39: 6500
C40: Installation cost | D40: % module cost | E40: 0.05
C41: Total COGS | D41: =$E$9 -> USD | E41: =SUM(E38:E39)*E40+(E38+E39) -> 489.5625
A43: ● | C43: Sales and pricing
C45: Sales assumptions
C46: Product 1
C47: Initial sales (2019) | D47: # | E47: 1200 | I47: =$E$8 -> 2020 | J47: =I47+1 -> 2021 | K47: =J47+1 -> 2022 | L47: 2023 | M47: 2024 | N47: 2025
C48: Annual sales growth | D48: # | J48: =J208 -> 0.4 | K48: =K208 -> 0.35 | L48: =L208 -> 0.3 | M48: =M208 -> 0.3 | N48: =N208 -> 0.2
C49: Total sales | E49: =SUM(I49:Q49) -> 16528.824 | I49: =E47 -> 1200 | J49: =I49*(1+J48) -> 1680 | K49: =J49*(1+K48) -> 2268 | L49: 2948.4 | M49: 3832.92 | N49: 4599.504
C51: Pricing assumptions
C52: Product 1
C53: Total PAYG | D53: =$E$9 -> USD | E53: =E54 + (E55*E56) -> 300
C54: Down Payment | D54: USD | E54: =IF($E$9="NGN",G54,(G54/$E$202)) -> 150 | G54: 60000
C55: Monthly fees | D55: USD | E55: =IF($E$9="NGN",G55,(G55/$E$202)) -> 12.5 | G55: 5000
C56: Tenure | D56: Months | E56: 12
C58: Default rate | D58: % | E58: 0.2
C60: Sales assumptions
C61: Product 2
C62: Initial sales (2019) | D62: # | E62: 800 | I62: =$E$8 -> 2020 | J62: =I62+1 -> 2021 | K62: =J62+1 -> 2022 | L62: 2023 | M62: 2024 | N62: 2025
C63: Annual sales growth | D63: # | J63: =J209 -> 0.4 | K63: =K209 -> 0.35 | L63: =L209 -> 0.3 | M63: =M209 -> 0.3 | N63: =N209 -> 0.2
C64: Total sales | E64: =SUM(I64:Q64) -> 11019.216 | I64: =E62 -> 800 | J64: =I64*(1+J63) -> 1120 | K64: =J64*(1+K63) -> 1512 | L64: =K64*(1+L63) -> 1965.6 | M64: =L64*(1+M63) -> 2555.28 | N64: =M64*(1+N63) -> 3066.336
C66: Pricing assumptions
C67: Product 2
C68: Total PAYG | D68: =$E$9 -> USD | E68: =E69 + (E70*E71) -> 737.5
C69: Down Payment | D69: USD | E69: =IF($E$9="NGN",G69,(G69/$E$202)) -> 587.5 | G69: 235000
C70: Monthly fees | D70: USD | E70: =IF($E$9="NGN",G70,(G70/$E$202)) -> 12.5 | G70: 5000
C71: Tenure | D71: Months | E71: 12
C73: Default rate | D73: % | E73: 0.2
A75: ● | C75: Operational expenses
C77: Coporate overhead | G77: =I62 -> 2020
C78: Employees and salaries | E78: Per employee | I78: =Start_Year -> 2020 | J78: =I78+1 -> 2021 | K78: =J78+1 -> 2022 | L78: 2023 | M78: 2024 | N78: =M78+1 -> 2025
C79: Artisan (Technician, Electrician) | D79: =CONCATENATE($E$9," ","annual") -> USD annual | E79: =IF($E$9="NGN",G79,(G79/$E$202)) -> 900 | G79: 360000 | I79: 1 | J79: 2 | K79: 2 | L79: 4 | M79: 4 | N79: 5
C80: Technical Manager | D80: =CONCATENATE($E$9," ","annual") -> USD annual | E80: 1200 | G80: 480000 | I80: 1 | J80: 1 | K80: 1 | L80: 2 | M80: 2 | N80: 2
C81: HR and Admin Manager | D81: USD annual | E81: 1500 | G81: 600000 | I81: 1 | J81: 1 | K81: 1 | L81: 2 | M81: 2 | N81: 2
C82: Marketing & PR Executive | D82: USD annual | E82: 1350 | G82: 540000 | I82: 1 | J82: 2 | K82: 2 | L82: 3 | M82: 3 | N82: 4
C83: Logistics and Stock Control | D83: USD annual | E83: 600 | G83: 240000 | I83: 1 | J83: 1 | K83: 1 | L83: 2 | M83: 2 | N83: 2
C84: IT Support | D84: USD annual | E84: 600 | G84: 240000 | I84: 1 | J84: 1 | K84: 1 | L84: 2 | M84: 2 | N84: 3
C85: Employee benefits & payroll tax | D85: % payroll | E85: 0.025
C87: Total corporate salaries and benefits | D87: =CONCATENATE($E$9," ","annual") -> USD annual | I87: =SUMPRODUCT($E$79:$E$84,I79:I84) + SUMPRODUCT($E$79:$E$84,I79:I84)*$E$85 -> 6303.75 | J87: 8610 | K87: 8610 | L87: 15836.25 | M87: 15836.25 | N87: 18757.5
C89: Office
C90: Head office rent | D90: =CONCATENATE($E$9," ","annual") -> USD annual | E90: =IF($E$9="NGN",G90,(G90/$E$202)) -> 600 | G90: 240000
C91: Warehouse rent | D91: USD annual | E91: =IF($E$9="NGN",G91,(G91/$E$202)) -> 2125 | G91: 850000
C92: Maintenance | D92: USD annual | E92: =IF($E$9="NGN",G92,(G92/$E$202)) -> 737.5 | G92: 295000
C93: Technology & communications | D93: USD annual | E93: =IF($E$9="NGN",G93,(G93/$E$202)) -> 280 | G93: 112000
C95: Total office expenses | D95: =CONCATENATE($E$9," ","annual") -> USD annual | E95: =SUM(E90:E93) -> 3742.5
C97: Administration | G97: Annual increase
C98: Insurance | D98: =CONCATENATE($E$9," ","annual") -> USD annual | E98: =IF($E$9="NGN",G98,(G98/$E$202)) -> 387.5 | G98: 155000
C99: Legal | D99: USD annual | E99: =IF($E$9="NGN",G99,(G99/$E$202)) -> 445 | G99: 178000
C100: Travel expenses | D100: USD annual | E100: =IF($E$9="NGN",G100,(G100/$E$202)) -> 812.5 | G100: 325000
C102: Total administration expenses | D102: =CONCATENATE($E$9," ","annual") -> USD annual | E102: =SUM(E98:E100) -> 1645
C104: Direct sales and service costs | I104: =$E$8 -> 2020 | J104: =I104+1 -> 2021 | K104: =J104+1 -> 2022 | L104: 2023 | M104: 2024 | N104: 2025
C105: New service centers | D105: # | I105: 1 | J105: 1 | K105: 1 | L105: 1 | M105: 1 | N105: 1
C106: Active service centers | D106: # | I106: =SUM(I105) -> 1 | J106: =SUM($I$105:J105) -> 2 | K106: =SUM($I$105:K105) -> 3 | L106: =SUM($I$105:L105) -> 4 | M106: =SUM($I$105:M105) -> 5 | N106: =SUM($I$105:N105) -> 6
C108: Service center rent | D108: =CONCATENATE($E$9," ","annual") -> USD annual | E108: =IF($E$9="NGN",G108,(G108/$E$202)) -> 375 | G108: 150000
C110: Marketing (% revenue) | D110: % | E110: 0.02
C112: Salaries (per service center) | E112: Salary | I112: =$E$8 -> 2020 | J112: =I112+1 -> 2021 | K112: =J112+1 -> 2022 | L112: 2023 | M112: 2024 | N112: 2025
C113: Sales Agent | D113: =CONCATENATE($E$9," ","annual") -> USD annual | E113: =IF($E$9="NGN",G113,(G113/$E$202)) -> 900 | G113: 360000 | I113: 2 | J113: 2 | K113: 2 | L113: 2 | M113: 2 | N113: 2
C114: Technician | D114: USD annual | E114: =IF($E$9="NGN",G114,(G114/$E$202)) -> 900 | G114: 360000 | I114: 2 | J114: 2 | K114: 2 | L114: 2 | M114: 2 | N114: 2
C115: Local labour (periodic) | D115: USD annual | E115: =IF($E$9="NGN",G115,(G115/$E$202)) -> 0 | G115: 0
C116: Security | D116: USD annual | E116: =IF($E$9="NGN",G116,(G116/$E$202)) -> 0 | G116: 0
C117: Driver | D117: USD annual | E117: =IF($E$9="NGN",G117,(G117/$E$202)) -> 0 | G117: 0
C118: Total salaries per service center | D118: USD annual | I118: =($E$113*I113)+($E$114*I114)+($E$115*I115)+($E$116*I116)+($E$117*I117) -> 3600 | J118: =($E$113*J113)+($E$114*J114)+($E$115*J115)+($E$116*J116)+($E$117*J117) -> 3600 | K118: 3600 | L118: 3600 | M118: 3600 | N118: 3600
C120: Total direct and service costs | D120: =CONCATENATE($E$9," ","annual") -> USD annual | I120: =(I106*$E$108) +($E$110*Model!I16)+Inputs!I$118 -> 21775 | J120: =(J106*$E$108) +($E$110*Model!J16)+Inputs!J$118 -> 29270 | K120: =(K106*$E$108) +($E$110*Model!K16)+Inputs!K$118 -> 38367 | L120: =(L106*$E$108) +($E$110*Model!L16)+Inputs!L$118 -> 48834.6 | M120: =(M106*$E$108) +($E$110*Model!M16)+Inputs!M$118 -> 62329.98 | N120: =(N106*$E$108) +($E$110*Model!N16)+Inputs!N$118 -> 74075.976
A123: ● | C123: Working capital
C125: Days in period | D125: # | E125: 365
C127: Receivable days | D127: # | E127: 15
C128: Payable days | D128: # | E128: 20
C129: Inventory days | D129: # | E129: 52
A131: ● | C131: Depreciation and Tax
C133: Depreciation of corporate PP&E
C134: Existing PP&E
C135: Beginning PP&E | D135: =$E$9 -> USD | E135: =E149 -> 3000 | I135: SL Deprec
C136: Depreciation rate | D136: years | E136: 10 | I136: =1/E136 -> 0.1
C138: Additions to PP&E | I138: =$E$8 -> 2020 | J138: =I138+1 -> 2021 | K138: =J138+1 -> 2022 | L138: =K138+1 -> 2023 | M138: =L138+1 -> 2024 | N138: =M138+1 -> 2025
C139: Equipment | D139: =$E$9 -> USD | I139: =IF($E$9="NGN",I140,(I140/I201)) -> 0 | J139: =IF($E$9="NGN",J140,(J140/J201)) -> 4861.111111 | K139: 3322.187929 | L139: 0 | M139: 0 | N139: 2041.749591
I140: 0 | J140: 2100000 | K140: 1550000 | L140: 0 | M140: 0 | N140: 1200000
C141: Tax
C142: VAT on sales | D142: % | E142: 0.075
C143: Income tax | D143: % PBT | E143: 0.32
A145: ● | C145: Balance sheet (2019)
C147: Assets
C148: Cash & Cash equivalent | D148: =$E$9 -> USD | E148: =IF($E$9="NGN",G148,(G148/$E$202)) -> 2125 | G148: 850000
C149: Non-current assets | D149: USD | E149: 3000 | G149: 1200000
C150: Trade & other receivables | D150: USD | E150: 0 | G150: 0
C152: Liabilities
C153: Long term loans | D153: =$E$9 -> USD | E153: =IF($E$9="NGN",G153,(G153/$E$202)) -> 0 | G153: 0
C154: Trade & other payables | D154: USD | E154: 0 | G154: 0
C156: Equity
C157: Equity | D157: =$E$9 -> USD | E157: =IF($E$9="NGN",G157,(G157/$E$202)) -> 4025 | G157: 1610000
C158: Retained earnings | D158: USD | E158: 1100 | G158: 440000
C160: Balance Check | D160: OK/Error | E160: =IF(SUM(E148:E150)-SUM(E153:E154,E157:E158)=0,0,1) -> 0
A163: ● | C163: Financing
C165: Equity and grants
C166: Equity | I166: =$E$8 -> 2020 | J166: =I166+1 -> 2021 | K166: =J166+1 -> 2022 | L166: 2023 | M166: 2024 | N166: 2025
C167: Equity investment | D167: NGN | E167: =SUM(J167:N167) -> 0 | I167: =IF($E$9="NGN",I168,(I168/I201)) -> 0 | J167: =IF($E$9="NGN",J168,(J168/J201)) -> 0 | K167: 0 | L167: 0 | M167: 0 | N167: 0
I168: 0 | J168: 0 | K168: 0 | L168: 0 | M168: 0 | N168: 0
C170: Grants | I170: =$E$8 -> 2020 | J170: =I170+1 -> 2021 | K170: =J170+1 -> 2022 | L170: 2023 | M170: 2024 | N170: 2025
C171: Grants | D171: USD | E171: =SUM(I171:N171) -> 50000 | I171: 50000
C173: Debt
C174: NGN Debt
C175: Lender name | D175: Name
C176: Amount | D176: Naira
C177: Interest rate | D177: %
C178: Grace period | D178: Months
C179: Tenor | D179: Months
C180: Date of first drawdown | D180: Date
C181: Estimated date of first principal repayment | D181: Date
C182: Estimated date of maturity | D182: Date
C184: USD Debt
C185: Lender name | D185: Name
C186: Amount | D186: USD | E186: 50000
C187: Interest rate | D187: % | E187: 0.05
C188: Grace period | D188: Months | E188: 12
C189: Tenor | D189: Months | E189: 60
C190: Date of first drawdown | D190: Date | E190: 2020-12-31
C191: Estimated date of first principal repayment | D191: Date | E191: 2021-12-31
C192: Estimated date of maturity | D192: Date | E192: 2025-12-31
A195: ● | C195: Macro-Economics
C197: Inflation | I197: =$E$8 -> 2020 | J197: =I197+1 -> 2021 | K197: =J197+1 -> 2022 | L197: 2023 | M197: 2024 | N197: 2025 | AB197: =AA197+1 -> 1 | AC197: 2 | AD197: 3 | AE197: 4
C198: General cost inflation | D198: %/year | E198: =I210 -> 0.1 | I198: 1 | J198: =I198*(1+$E$198) -> 1.1 | K198: =J198*(1+$E$198) -> 1.21 | L198: 1.331 | M198: 1.4641 | N198: 1.61051 | AB198: =AA198*(1+$E$639) -> 0 | AC198: =AB198*(1+$E$639) -> 0 | AD198: =AC198*(1+$E$639) -> 0 | AE198: =AD198*(1+$E$639) -> 0
C200: FX rates | I200: =EOMONTH(E7,0) -> 2020-01-31 | J200: =EOMONTH(I200,12) -> 2021-01-31 | K200: =EOMONTH(J200,12) -> 2022-01-31 | L200: 2023-01-31 | M200: 2024-01-31 | N200: 2025-01-31 | AB200: =AA200+1 -> 1 | AC200: 2 | AD200: 3 | AE200: 4
C201: Depreciation (NGN/USD) | D201: %/year | E201: =I211 -> 0.08 | I201: =E202 -> 400 | J201: =I201*(1+$E$201) -> 432 | K201: =J201*(1+$E$201) -> 466.56 | L201: 503.8848 | M201: 544.195584 | N201: 587.7312307 | AB201: =AA201*(1+$E$646) -> 0 | AC201: =AB201*(1+$E$646) -> 0 | AD201: =AC201*(1+$E$646) -> 0 | AE201: =AD201*(1+$E$646) -> 0
C202: Initial FX rate | D202: NGN/USD | E202: 400
A204: ● | C204: Scenario Analysis
I207: =Start_Year -> 2020 | J207: =I207+1 -> 2021 | K207: =J207+1 -> 2022 | L207: 2023 | M207: 2024 | N207: 2025
C208: Annual sales growth (product 1) | D208: % | I208: =IFERROR(OFFSET(I$213,MATCH($E$25,$C$214:$C$216,0)+MATCH($C208,$C$213:$C$228,0)-1,0),0) -> 0.4 | J208: 0.4 | K208: 0.35 | L208: 0.3 | M208: 0.3 | N208: 0.2
C209: Annual sales growth (product 2) | D209: % | I209: 0.4 | J209: 0.4 | K209: 0.35 | L209: 0.3 | M209: 0.3 | N209: 0.2
C210: Inflation | D210: % | I210: =IFERROR(OFFSET(I$213,MATCH($E$25,$C$214:$C$216,0)+MATCH($C210,$C$213:$C$228,0)-1,0),0) -> 0.1
C211: FX depreciation | D211: % | I211: =IFERROR(OFFSET(I$213,MATCH($E$25,$C$214:$C$216,0)+MATCH($C211,$C$213:$C$228,0)-1,0),0) -> 0.08
C213: Annual sales growth (product 1)
C214: Upside | D214: % | I214: 0.5 | J214: 0.5 | K214: 0.4 | L214: 0.35 | M214: 0.35 | N214: 0.25
C215: Base | D215: % | I215: 0.4 | J215: 0.4 | K215: 0.35 | L215: 0.3 | M215: 0.3 | N215: 0.2
C216: Downside | D216: % | I216: 0.2 | J216: 0.2 | K216: 0.15 | L216: 0.2 | M216: 0.2 | N216: 0.15
C217: Annual sales growth (product 2)
C218: Upside | D218: % | I218: 0.5 | J218: 0.5 | K218: 0.4 | L218: 0.35 | M218: 0.35 | N218: 0.25
C219: Base | D219: % | I219: 0.4 | J219: 0.4 | K219: 0.35 | L219: 0.3 | M219: 0.3 | N219: 0.2
C220: Downside | D220: % | I220: 0.2 | J220: 0.2 | K220: 0.15 | L220: 0.2 | M220: 0.2 | N220: 0.15
C221: Inflation
C222: Upside | D222: % | I222: 0.05
C223: Base | D223: % | I223: 0.1
C224: Downside | D224: % | I224: 0.12
C225: FX depreciation
C226: Upside | D226: % | I226: 0.05
C227: Base | D227: % | I227: 0.08
C228: Downside | D228: % | I228: 0.1

Sheet Model
C1: =Name_Model -> FGN 5M Solar Connections Facility - SHS
C3: Model
I5: =CONCATENATE("Annual summary"," ",Inputs!$E$9) -> Annual summary USD
C6: Year | I6: =Start_Year -> 2020 | J6: =I6+1 -> 2021 | K6: =J6+1 -> 2022 | L6: 2023 | M6: 2024 | N6: 2025
C7: Period start | I7: =Inputs!E7 -> 2020-01-01 | J7: =EOMONTH(I7,11)+1 -> 2021-01-01 | K7: =EOMONTH(J7,11)+1 -> 2022-01-01 | L7: 2023-01-01 | M7: 2024-01-01 | N7: 2025-01-01
C8: Period end | H8: 2020-01-01 | I8: =EOMONTH(I7,11) -> 2020-12-31 | J8: =EOMONTH(J7,11) -> 2021-12-31 | K8: 2022-12-31 | L8: 2023-12-31 | M8: 2024-12-31 | N8: =EOMONTH(N7,11) -> 2025-12-31
C9: Period
C10: Inflation index | I10: =Inputs!I198 -> 1 | J10: =Inputs!J198 -> 1.1 | K10: =Inputs!K198 -> 1.21 | L10: =Inputs!L198 -> 1.331 | M10: =Inputs!M198 -> 1.4641 | N10: =Inputs!N198 -> 1.61051
C11: USD:Naira FX rate (EOP) | H11: =Inputs!E202 -> 400 | I11: =Inputs!I201 -> 400 | J11: =Inputs!J201 -> 432 | K11: =Inputs!K201 -> 466.56 | L11: =Inputs!L201 -> 503.8848 | M11: =Inputs!M201 -> 544.195584 | N11: =Inputs!N201 -> 587.7312307
A13: ● | C13: Income Statement
C15: Gross income
C16: Sales revenue | D16: =Inputs!$E$9 -> USD | I16: =I120+I130 -> 890000 | J16: =J120+J130 -> 1246000 | K16: 1682100 | L16: 2186730 | M16: 2842749 | N16: 3411298.8
C17: COGS | D17: =Inputs!$E$9 -> USD | I17: =-(Inputs!$E$34*Inputs!I49)+-(Inputs!$E$41*Inputs!I64) -> -623175 | J17: =-(Inputs!$E$34*Inputs!J49)+-(Inputs!$E$41*Inputs!J64) -> -872445 | K17: =-(Inputs!$E$34*Inputs!K49)+-(Inputs!$E$41*Inputs!K64) -> -1177800.75 | L17: =-(Inputs!$E$34*Inputs!L49)+-(Inputs!$E$41*Inputs!L64) -> -1531140.975 | M17: =-(Inputs!$E$34*Inputs!M49)+-(Inputs!$E$41*Inputs!M64) -> -1990483.268 | N17: =-(Inputs!$E$34*Inputs!N49)+-(Inputs!$E$41*Inputs!N64) -> -2388579.921
C18: Total gross income | D18: =Inputs!$E$9 -> USD | I18: =I16+I17 -> 266825 | J18: =J16+J17 -> 373555 | K18: 504299.25 | L18: 655589.025 | M18: 852265.7325 | N18: 1022718.879
C20: Operating costs
C21: Corporate salaries and benefits | D21: =Inputs!$E$9 -> USD | I21: =-Inputs!I87 *I10 -> -6303.75 | J21: =-Inputs!J87 *J10 -> -9471 | K21: =-Inputs!K87 *K10 -> -10418.1 | L21: =-Inputs!L87 *L10 -> -21078.04875 | M21: =-Inputs!M87 *M10 -> -23185.85363 | N21: =-Inputs!N87 *N10 -> -30209.14133
C22: Corporate office expenses | D22: =Inputs!$E$9 -> USD | I22: =-Inputs!$E$95*I10 -> -3742.5 | J22: =-Inputs!$E$95*J10 -> -4116.75 | K22: =-Inputs!$E$95*K10 -> -4528.425 | L22: =-Inputs!$E$95*L10 -> -4981.2675 | M22: =-Inputs!$E$95*M10 -> -5479.39425 | N22: =-Inputs!$E$95*N10 -> -6027.333675
C23: Corporate administrative expenses | D23: =Inputs!$E$9 -> USD | I23: =-Inputs!$E$102*I10 -> -1645 | J23: =-Inputs!$E$102*J10 -> -1809.5 | K23: =-Inputs!$E$102*K10 -> -1990.45 | L23: =-Inputs!$E$102*L10 -> -2189.495 | M23: =-Inputs!$E$102*M10 -> -2408.4445 | N23: =-Inputs!$E$102*N10 -> -2649.28895
C24: Direct sales and service cost | D24: =Inputs!$E$9 -> USD | I24: =-Inputs!I120*I10 -> -21775 | J24: =-Inputs!J120*J10 -> -32197 | K24: =-Inputs!K120*K10 -> -46424.07 | L24: =-Inputs!L120*L10 -> -64998.8526 | M24: =-Inputs!M120*M10 -> -91257.32372 | N24: =-Inputs!N120*N10 -> -119300.1001
C25: Total operating costs | D25: =Inputs!$E$9 -> USD | I25: =SUM(I21:I24) -> -33466.25 | J25: -47594.25 | K25: -63361.045 | L25: -93247.66385 | M25: -122331.0161 | N25: -158185.8641
C27: VAT on sales | D27: =Inputs!$E$9 -> USD | F27: =Inputs!E142 -> 0.075 | I27: =-$F$27*I16 -> -66750 | J27: -93450 | K27: -126157.5 | L27: -164004.75 | M27: -213206.175 | N27: -255847.41
C29: EBITDA | D29: =Inputs!$E$9 -> USD | I29: =I18+I25+I27 -> 166608.75 | J29: 232510.75 | K29: 314780.705 | L29: 398336.6111 | M29: 516728.5414 | N29: 608685.6049
C31: Depreciation | D31: =Inputs!$E$9 -> USD | I31: =-(I141) -> -300 | J31: =-(J141) -> -270 | K31: -729.1111111 | L31: -988.4187929 | M31: -889.5769136 | N31: -800.6192222
C33: EBIT | D33: =Inputs!$E$9 -> USD | I33: =I29+I31 -> 166308.75 | J33: =J29+J31 -> 232240.75 | K33: 314051.5939 | L33: 397348.1924 | M33: 515838.9645 | N33: 607884.9857
C35: Interest expense | D35: =Inputs!$E$9 -> USD | I35: =-(IF(Inputs!$E$9="NGN",(I174+I190),I183)) -> -2500 | J35: =-(IF(Inputs!$E$9="NGN",(J174+J190),J183)) -> -1875 | K35: =-(IF(Inputs!$E$9="NGN",(K174+K190),K183)) -> -1250 | L35: =-(IF(Inputs!$E$9="NGN",(L174+L190),L183)) -> -625 | M35: =-(IF(Inputs!$E$9="NGN",(M174+M190),M183)) -> 0 | N35: =-(IF(Inputs!$E$9="NGN",(N174+N190),N183)) -> 0
C36: FX (gains)/losses | D36: =Inputs!$E$9 -> USD | I36: =(IF(Inputs!$E$9="NGN",I189,0)) -> 0 | J36: =(IF(Inputs!$E$9="NGN",J189,0)) -> 0 | K36: =(IF(Inputs!$E$9="NGN",K189,0)) -> 0 | L36: =(IF(Inputs!$E$9="NGN",L189,0)) -> 0 | M36: =(IF(Inputs!$E$9="NGN",M189,0)) -> 0 | N36: =(IF(Inputs!$E$9="NGN",N189,0)) -> 0
C38: EBT | D38: =Inputs!$E$9 -> USD | I38: =I33+SUM(I35:I36) -> 163808.75 | J38: =J33+SUM(J35:J36) -> 230365.75 | K38: 312801.5939 | L38: 396723.1924 | M38: 515838.9645 | N38: 607884.9857
C40: Income tax payable | D40: =Inputs!$E$9 -> USD | F40: =Inputs!E143 -> 0.32 | I40: =-$F40*MAX(I38,0) -> -52418.8 | J40: =-$F40*MAX(J38,0) -> -73717.04 | K40: -100096.51 | L40: -126951.4216 | M40: -165068.4686 | N40: -194523.1954
C42: Net income | D42: =Inputs!$E$9 -> USD | I42: =I38+I40 -> 111389.95 | J42: =J38+J40 -> 156648.71 | K42: 212705.0838 | L42: 269771.7708 | M42: 350770.4959 | N42: 413361.7903
A44: ● | C44: Balance Sheet
C46: Assets
C47: Current assets
C48: Cash and equivalents | D48: =Inputs!$E$9 -> USD | I48: =I103 -> 122605.087 | J48: =J103 -> 225678.7407 | K48: 378597.9148 | L48: 585142.1121 | M48: 857071.3948 | N48: 1210925.37
C49: Trade & other receivables | D49: =Inputs!$E$9 -> USD | I49: =I148 -> 0 | J49: =J148 -> 0 | K49: 0 | L49: 0 | M49: 0 | N49: 0
C50: Accounts receivable, net | D50: =Inputs!$E$9 -> USD | I50: =I149 -> 36575.34247 | J50: =J149 -> 51205.47945 | K50: 69127.39726 | L50: 89865.61644 | M50: 116825.3014 | N50: =N149 -> 140190.3616
C51: Inventory | D51: =Inputs!$E$9 -> USD | I51: =I150 -> 88781.09589 | J51: 124293.5342 | K51: 167796.2712 | L51: 218135.1526 | M51: 283575.6984 | N51: =N150 -> 340290.8381
C52: Total current assets | D52: =Inputs!$E$9 -> USD | I52: =SUM(I48:I51) -> 247961.5253 | J52: 401177.7544 | K52: 615521.5833 | L52: 893142.8811 | M52: 1257472.395 | N52: 1691406.57
C54: PP&E | I54: =I142 -> 2700 | J54: =J142 -> 7291.111111 | K54: 9884.187929 | L54: 8895.769136 | M54: 8006.192222 | N54: =N142 -> 9247.322591
C55: Total assets | D55: =Inputs!$E$9 -> USD | I55: =I52+I54 -> 250661.5253 | J55: =J52+J54 -> 408468.8655 | K55: 625405.7712 | L55: 902038.6503 | M55: 1265478.587 | N55: =N52+N54 -> 1700653.892
C57: Trade and other payables | D57: =Inputs!$E$9 -> USD | I57: =I154 -> 0 | J57: =J154 -> 0 | K57: 0 | L57: 0 | M57: 0 | N57: 0
C58: Accounts payable, net | D58: =Inputs!$E$9 -> USD | I58: =I155 -> 34146.57534 | J58: =J155 -> 47805.20548 | K58: 64537.0274 | L58: 83898.13562 | M58: 109067.5763 | N58: =N155 -> 130881.0916
C59: Total current liabilities | D59: =Inputs!$E$9 -> USD | I59: =SUM(I57:I58) -> 34146.57534 | J59: =SUM(J57:J58) -> 47805.20548 | K59: 64537.0274 | L59: 83898.13562 | M59: 109067.5763 | N59: 130881.0916
C61: Non-interest bearing debt | D61: =Inputs!$E$9 -> USD | H61: =Inputs!E153 -> 0 | I61: =$H$61 -> 0 | J61: =$H$61 -> 0 | K61: 0 | L61: 0 | M61: 0 | N61: 0
C62: NGN Debt | D62: =Inputs!$E$9 -> USD | I62: =I173 -> 0 | J62: =J173 -> 0 | K62: 0 | L62: 0 | M62: 0 | N62: 0
C63: USD Debt | D63: =Inputs!$E$9 -> USD | I63: =(IF(Inputs!$E$9="NGN",I188,I182)) -> 50000 | J63: =(IF(Inputs!$E$9="NGN",J188,J182)) -> 37500 | K63: =(IF(Inputs!$E$9="NGN",K188,K182)) -> 25000 | L63: =(IF(Inputs!$E$9="NGN",L188,L182)) -> 12500 | M63: =(IF(Inputs!$E$9="NGN",M188,M182)) -> 0 | N63: =(IF(Inputs!$E$9="NGN",N188,N182)) -> 0
C64: Total liabilities | D64: =Inputs!$E$9 -> USD | I64: =SUM(I61:I63) +I59 -> 84146.57534 | J64: 85305.20548 | K64: 89537.0274 | L64: 96398.13562 | M64: 109067.5763 | N64: 130881.0916
C67: Equity | D67: =Inputs!$E$9 -> USD | H67: =Inputs!E157 -> 4025 | I67: =H67+Inputs!I167 -> 4025 | J67: =I67+Inputs!J167 -> 4025 | K67: =J67+Inputs!K167 -> 4025 | L67: =K67+Inputs!L167 -> 4025 | M67: =L67+Inputs!M167 -> 4025 | N67: =M67+Inputs!N167 -> 4025
C68: Grant capital | D68: =Inputs!$E$9 -> USD | I68: =I98 -> 50000 | J68: =I68+J98 -> 50000 | K68: =J68+K98 -> 50000 | L68: 50000 | M68: 50000 | N68: 50000
C69: Retained earnings | D69: =Inputs!$E$9 -> USD | H69: =Inputs!E158 -> 1100 | I69: =H69+I42 -> 112489.95 | J69: 269138.66 | K69: 481843.7438 | L69: 751615.5146 | M69: 1102386.011 | N69: 1515747.801
C70: Total Equity | D70: =Inputs!$E$9 -> USD | I70: =SUM(I67:I69) -> 166514.95 | J70: =SUM(J67:J69) -> 323163.66 | K70: 535868.7438 | L70: 805640.5146 | M70: 1156411.011 | N70: 1569772.801
C72: Total liabilities and equity | I72: =I70+I64 -> 250661.5253 | J72: 408468.8655 | K72: 625405.7712 | L72: 902038.6503 | M72: 1265478.587 | N72: =N70+N64 -> 1700653.892
C74: Balance Check | D74: OK/Error | H74: =IF(ROUND(SUM(I74:N74),1)<>0,1,0) -> 0 | I74: =I55-I72 -> 0 | J74: 0 | K74: 0 | L74: 0 | M74: 0 | N74: 0
A77: ● | C77: Cashflow
C79: Operating activities
C80: Net income | D80: =Inputs!$E$9 -> USD | I80: =I42 -> 111389.95 | J80: 156648.71 | K80: 212705.0838 | L80: 269771.7708 | M80: 350770.4959 | N80: 413361.7903
C81: Depreciation | D81: =Inputs!$E$9 -> USD | I81: =-I31 -> 300 | J81: 270 | K81: 729.1111111 | L81: 988.4187929 | M81: 889.5769136 | N81: 800.6192222
C82: FX (gains)/losses | D82: =Inputs!$E$9 -> USD | I82: =I36 -> 0 | J82: =J36 -> 0 | K82: 0 | L82: 0 | M82: 0 | N82: 0
C83: (Increase)/decrease in working capital | D83: =Inputs!$E$9 -> USD | I83: =I160 -> -91209.86301 | J83: -36483.94521 | K83: -44692.83288 | L83: -51715.99233 | M83: -67230.79003 | N83: -58266.68469
C84: Cash flow from operating activities | D84: =Inputs!$E$9 -> USD | I84: =SUM(I80:I83) -> 20480.08699 | J84: =SUM(J80:J83) -> 120434.7648 | K84: 168741.3621 | L84: 219044.1973 | M84: 284429.2827 | N84: 355895.7248
C86: Investing activities
C87: Capital expenditure | D87: =Inputs!$E$9 -> USD | I87: =-(I140) -> 0 | J87: =-(J140) -> -4861.111111 | K87: -3322.187929 | L87: 0 | M87: 0 | N87: =-(N140) -> -2041.749591
C88: Cash flow from investing activities | D88: =Inputs!$E$9 -> USD | I88: =SUM(I87) -> 0 | J88: =SUM(J87) -> -4861.111111 | K88: -3322.187929 | L88: 0 | M88: 0 | N88: =SUM(N87) -> -2041.749591
C90: Cash available for financing activities | D90: =Inputs!$E$9 -> USD | I90: =I84+I88 -> 20480.08699 | J90: =J84+J88 -> 115573.6537 | K90: 165419.1742 | L90: 219044.1973 | M90: 284429.2827 | N90: =N84+N88 -> 353853.9752
C92: Financing activities
C93: (Repayment) of NGN debt | D93: =Inputs!$E$9 -> USD | I93: =-(IF(Inputs!$E$9="NGN",I172,(I172/I11))) -> 0 | J93: =-(IF(Inputs!$E$9="NGN",J172,(J172/J11))) -> 0 | K93: =-(IF(Inputs!$E$9="NGN",K172,(K172/K11))) -> 0 | L93: =-(IF(Inputs!$E$9="NGN",L172,(L172/L11))) -> 0 | M93: =-(IF(Inputs!$E$9="NGN",M172,(M172/M11))) -> 0 | N93: =-(IF(Inputs!$E$9="NGN",N172,(N172/N11))) -> 0
C94: (Repayment) of USD debt | D94: =Inputs!$E$9 -> USD | I94: =-(IF(Inputs!$E$9="NGN",I187,I181)) -> 0 | J94: =-(IF(Inputs!$E$9="NGN",J187,J181)) -> -12500 | K94: =-(IF(Inputs!$E$9="NGN",K187,K181)) -> -12500 | L94: =-(IF(Inputs!$E$9="NGN",L187,L181)) -> -12500 | M94: =-(IF(Inputs!$E$9="NGN",M187,M181)) -> -12500 | N94: =-(IF(Inputs!$E$9="NGN",N187,N181)) -> 0
C95: Issuance of NGN debt | D95: =Inputs!$E$9 -> USD | I95: =IF(Inputs!$E$9="NGN",I170,(I170/I11)) -> 0 | J95: =IF(Inputs!$E$9="NGN",J170,(J170/J11)) -> 0 | K95: =IF(Inputs!$E$9="NGN",K170,(K170/K11)) -> 0 | L95: =IF(Inputs!$E$9="NGN",L170,(L170/L11)) -> 0 | M95: =IF(Inputs!$E$9="NGN",M170,(M170/M11)) -> 0 | N95: =IF(Inputs!$E$9="NGN",N170,(N170/N11)) -> 0
C96: Issuance of USD debt | D96: =Inputs!$E$9 -> USD | I96: =IF(Inputs!$E$9="NGN",I186,I179) -> 50000 | J96: =IF(Inputs!$E$9="NGN",J186,J179) -> 0 | K96: =IF(Inputs!$E$9="NGN",K186,K179) -> 0 | L96: =IF(Inputs!$E$9="NGN",L186,L179) -> 0 | M96: =IF(Inputs!$E$9="NGN",M186,M179) -> 0 | N96: =IF(Inputs!$E$9="NGN",N186,N179) -> 0
C97: Increase / (decrease) in equity | D97: =Inputs!$E$9 -> USD | I97: =I67-H67 -> 0 | J97: 0 | K97: 0 | L97: 0 | M97: 0 | N97: 0
C98: Receipt of grants | D98: =Inputs!$E$9 -> USD | I98: =IF(Inputs!$E$9="NGN",(Inputs!I171*I11),(Inputs!I171)) -> 50000 | J98: =IF(Inputs!$E$9="NGN",(Inputs!J171*J11),(Inputs!J171)) -> 0 | K98: =IF(Inputs!$E$9="NGN",(Inputs!K171*K11),(Inputs!K171)) -> 0 | L98: =IF(Inputs!$E$9="NGN",(Inputs!L171*L11),(Inputs!L171)) -> 0 | M98: =IF(Inputs!$E$9="NGN",(Inputs!M171*M11),(Inputs!M171)) -> 0 | N98: =IF(Inputs!$E$9="NGN",(Inputs!N171*N11),(Inputs!N171)) -> 0
C99: Cash flow from financing activities | D99: =Inputs!$E$9 -> USD | I99: =SUM(I93:I98) -> 100000 | J99: =SUM(J93:J98) -> -12500 | K99: -12500 | L99: -12500 | M99: -12500 | N99: 0
C101: Net change in cash | D101: =Inputs!$E$9 -> USD | I101: =I90+I99 -> 120480.087 | J101: 103073.6537 | K101: 152919.1742 | L101: 206544.1973 | M101: 271929.2827 | N101: 353853.9752
C102: Beginning cash balance | D102: =Inputs!$E$9 -> USD | I102: =Inputs!E148 -> 2125 | J102: =I103 -> 122605.087 | K102: =J103 -> 225678.7407 | L102: 378597.9148 | M102: 585142.1121 | N102: 857071.3948
C103: Ending cash balance | D103: =Inputs!$E$9 -> USD | I103: =I101+I102 -> 122605.087 | J103: =J101+J102 -> 225678.7407 | K103: =K101+K102 -> 378597.9148 | L103: 585142.1121 | M103: 857071.3948 | N103: =N101+N102 -> 1210925.37 | P103: =IF(MIN(Q103:Q103)<0,1,0) -> 0
C105: Distributions to equity
C106: Distributions to equity | D106: =Inputs!$E$9 -> USD | I106: =I90+I93+I94-I97 -> 20480.08699 | J106: =J90+J93+J94-J97 -> 103073.6537 | K106: 152919.1742 | L106: 206544.1973 | M106: 271929.2827 | N106: 353853.9752
A108: ● | C108: Sales
C110: Period | H110: 0 | I110: =H110+1 -> 1 | J110: =I110+1 -> 2 | K110: 3 | L110: 4 | M110: 5 | N110: 6
C112: Sales calculations
C113: Product 1 sales
C114: Sales percentage | D114: % | I114: =INDEX(Inputs!$I$48:$P$48,,MATCH(I6,Inputs!$I$47:$P$47,0)) -> 0 | J114: =INDEX(Inputs!$I$48:$P$48,,MATCH(J6,Inputs!$I$47:$P$47,0)) -> 0.4 | K114: =INDEX(Inputs!$I$48:$P$48,,MATCH(K6,Inputs!$I$47:$P$47,0)) -> 0.35 | L114: =INDEX(Inputs!$I$48:$P$48,,MATCH(L6,Inputs!$I$47:$P$47,0)) -> 0.3 | M114: =INDEX(Inputs!$I$48:$P$48,,MATCH(M6,Inputs!$I$47:$P$47,0)) -> 0.3 | N114: =INDEX(Inputs!$I$48:$P$48,,MATCH(N6,Inputs!$I$47:$P$47,0)) -> 0.2
C115: Annual sales | D115: # | I115: =Inputs!E47 -> 1200 | J115: =I115*(1+J114) -> 1680 | K115: =J115*(1+K114) -> 2268 | L115: 2948.4 | M115: 3832.92 | N115: 4599.504
C117: Down payment revenue | D117: =Inputs!$E$9 -> USD | F117: =Inputs!E54 -> 150 | I117: =I115*$F$117 -> 180000 | J117: =J115*$F$117 -> 252000 | K117: 340200 | L117: 442260 | M117: 574938 | N117: =N115*$F$117 -> 689925.6
C118: Monthly payment revenue | D118: =Inputs!$E$9 -> USD | F118: =Inputs!E55*Inputs!E56 -> 150 | I118: =$F$118*I115 -> 180000 | J118: =$F$118*J115 -> 252000 | K118: 340200 | L118: 442260 | M118: 574938 | N118: =$F$118*N115 -> 689925.6
C119: Default rates | D119: % | F119: =Inputs!E58 -> 0.2 | I119: =$F$119*(I118) -> 36000 | J119: =$F$119*(J118) -> 50400 | K119: 68040 | L119: 88452 | M119: 114987.6 | N119: 137985.12
C120: Total product 1 revenue | D120: =Inputs!$E$9 -> USD | I120: =I117+(I118-I119) -> 324000 | J120: =J117+(J118-J119) -> 453600 | K120: 612360 | L120: 796068 | M120: 1034888.4 | N120: =N117+(N118-N119) -> 1241866.08
C122: Sales calculations
C123: Product 2 sales
C124: Sales percentage | D124: % | I124: =INDEX(Inputs!$I$63:$P$63,,MATCH(I6,Inputs!$I$62:$P$62,0)) -> 0 | J124: =INDEX(Inputs!$I$63:$P$63,,MATCH(J6,Inputs!$I$62:$P$62,0)) -> 0.4 | K124: =INDEX(Inputs!$I$63:$P$63,,MATCH(K6,Inputs!$I$62:$P$62,0)) -> 0.35 | L124: =INDEX(Inputs!$I$63:$P$63,,MATCH(L6,Inputs!$I$62:$P$62,0)) -> 0.3 | M124: =INDEX(Inputs!$I$63:$P$63,,MATCH(M6,Inputs!$I$62:$P$62,0)) -> 0.3 | N124: =INDEX(Inputs!$I$63:$P$63,,MATCH(N6,Inputs!$I$62:$P$62,0)) -> 0.2
C125: Annual sales | D125: # | I125: =Inputs!E62 -> 800 | J125: =I125*(1+J124) -> 1120 | K125: =J125*(1+K124) -> 1512 | L125: =K125*(1+L124) -> 1965.6 | M125: =L125*(1+M124) -> 2555.28 | N125: =M125*(1+N124) -> 3066.336
C127: Down payment revenue | D127: =Inputs!$E$9 -> USD | F127: =Inputs!E69 -> 587.5 | I127: =I125*$F$127 -> 470000 | J127: =J125*$F$127 -> 658000 | K127: 888300 | L127: 1154790 | M127: 1501227 | N127: 1801472.4
C128: Monthly payment revenue | D128: =Inputs!$E$9 -> USD | F128: =Inputs!E70*Inputs!E71 -> 150 | I128: =$F$128*I125 -> 120000 | J128: =$F$128*J125 -> 168000 | K128: 226800 | L128: 294840 | M128: 383292 | N128: 459950.4
C129: Default rates | D129: % | F129: =Inputs!E73 -> 0.2 | I129: =$F$129*(I128) -> 24000 | J129: =$F$129*(J128) -> 33600 | K129: 45360 | L129: 58968 | M129: 76658.4 | N129: 91990.08
C130: Total product 2 revenue | D130: =Inputs!$E$9 -> USD | I130: =I127+(I128-I129) -> 566000 | J130: =J127+(J128-J129) -> 792400 | K130: 1069740 | L130: 1390662 | M130: 1807860.6 | N130: 2169432.72
A134: ● | C134: CAPEX and Depreciation
C136: Period counter
C138: PP&E
C139: Beginning | D139: =Inputs!$E$9 -> USD | I139: =Inputs!E135 -> 3000 | J139: =I142 -> 2700 | K139: =J142 -> 7291.111111 | L139: =K142 -> 9884.187929 | M139: =L142 -> 8895.769136 | N139: 8006.192222
C140: Capex | D140: =Inputs!$E$9 -> USD | I140: =Inputs!I139 -> 0 | J140: =Inputs!J139 -> 4861.111111 | K140: =Inputs!K139 -> 3322.187929 | L140: =Inputs!L139 -> 0 | M140: =Inputs!M139 -> 0 | N140: =Inputs!N139 -> 2041.749591
C141: Depreciation | D141: =Inputs!$E$9 -> USD | F141: =Inputs!I136 -> 0.1 | I141: =$F$141*I139 -> 300 | J141: =$F$141*J139 -> 270 | K141: 729.1111111 | L141: 988.4187929 | M141: 889.5769136 | N141: 800.6192222
C142: Ending | D142: =Inputs!$E$9 -> USD | I142: =I139+I140-I141 -> 2700 | J142: =J139+J140-J141 -> 7291.111111 | K142: 9884.187929 | L142: 8895.769136 | M142: 8006.192222 | N142: =N139+N140-N141 -> 9247.322591
A144: ● | C144: Working Capital Schedule
C146: Net working capital
C147: Assets
C148: Trade & other receivables | D148: =Inputs!$E$9 -> USD | H148: =Inputs!E150 -> 0 | I148: =H148 -> 0 | J148: =I148 -> 0 | K148: =J148 -> 0 | L148: 0 | M148: 0 | N148: 0
C149: Account receivable, net | D149: =Inputs!$E$9 -> USD | I149: =(I16*Inputs!$E$127)/Inputs!$E$125 -> 36575.34247 | J149: =(J16*Inputs!$E$127)/Inputs!$E$125 -> 51205.47945 | K149: =(K16*Inputs!$E$127)/Inputs!$E$125 -> 69127.39726 | L149: =(L16*Inputs!$E$127)/Inputs!$E$125 -> 89865.61644 | M149: =(M16*Inputs!$E$127)/Inputs!$E$125 -> 116825.3014 | N149: =(N16*Inputs!$E$127)/Inputs!$E$125 -> 140190.3616
C150: Inventory | D150: =Inputs!$E$9 -> USD | I150: =(-I17*Inputs!$E$129)/Inputs!$E$125 -> 88781.09589 | J150: =(-J17*Inputs!$E$129)/Inputs!$E$125 -> 124293.5342 | K150: =(-K17*Inputs!$E$129)/Inputs!$E$125 -> 167796.2712 | L150: =(-L17*Inputs!$E$129)/Inputs!$E$125 -> 218135.1526 | M150: =(-M17*Inputs!$E$129)/Inputs!$E$125 -> 283575.6984 | N150: =(-N17*Inputs!$E$129)/Inputs!$E$125 -> 340290.8381
C151: Total current assets | D151: =Inputs!$E$9 -> USD | I151: =SUM(I148:I150) -> 125356.4384 | J151: =SUM(J148:J150) -> 175499.0137 | K151: 236923.6685 | L151: 308000.769 | M151: 400400.9998 | N151: 480481.1997
C153: Liabilities
C154: Trade & other payables | D154: =Inputs!$E$9 -> USD | H154: =Inputs!E154 -> 0 | I154: =H154 -> 0 | J154: =I154 -> 0 | K154: =J154 -> 0 | L154: 0 | M154: 0 | N154: 0
C155: Accounts payable, net | D155: =Inputs!$E$9 -> USD | I155: =(-I17*Inputs!$E$128)/Inputs!$E$125 -> 34146.57534 | J155: =(-J17*Inputs!$E$128)/Inputs!$E$125 -> 47805.20548 | K155: =(-K17*Inputs!$E$128)/Inputs!$E$125 -> 64537.0274 | L155: =(-L17*Inputs!$E$128)/Inputs!$E$125 -> 83898.13562 | M155: =(-M17*Inputs!$E$128)/Inputs!$E$125 -> 109067.5763 | N155: =(-N17*Inputs!$E$128)/Inputs!$E$125 -> 130881.0916
C156: Total current liabilities | D156: =Inputs!$E$9 -> USD | I156: =SUM(I154:I155) -> 34146.57534 | J156: =SUM(J154:J155) -> 47805.20548 | K156: 64537.0274 | L156: 83898.13562 | M156: 109067.5763 | N156: 130881.0916
C158: Net working capital/(deficit) | D158: =Inputs!$E$9 -> USD | H158: =H148-H154 -> 0 | I158: =I151-I156 -> 91209.86301 | J158: 127693.8082 | K158: 172386.6411 | L158: 224102.6334 | M158: 291333.4235 | N158: 349600.1081
C160: (Increase)/decrease in working capital | D160: =Inputs!$E$9 -> USD | I160: =H158-I158 -> -91209.86301 | J160: -36483.94521 | K160: =J158-K158 -> -44692.83288 | L160: =K158-L158 -> -51715.99233 | M160: =L158-M158 -> -67230.79003 | N160: -58266.68469
A162: ● | C162: Debt funding
C164: USD:Naira rate (EOP)
C167: =CONCATENATE(Inputs!E175," ","Debt") -> Debt
C168: Period count | I168: =IF(AND(MONTH(I$7)=1,I$6=YEAR(Inputs!$E$180)),1,IF(H168>0,H168+1,0)) -> 0 | J168: =IF(AND(MONTH(J$7)=1,J$6=YEAR(Inputs!$E$180)),1,IF(I168>0,I168+1,0)) -> 0 | K168: =IF(AND(MONTH(K$7)=1,K$6=YEAR(Inputs!$E$180)),1,IF(J168>0,J168+1,0)) -> 0 | L168: =IF(AND(MONTH(L$7)=1,L$6=YEAR(Inputs!$E$180)),1,IF(K168>0,K168+1,0)) -> 0 | M168: =IF(AND(MONTH(M$7)=1,M$6=YEAR(Inputs!$E$180)),1,IF(L168>0,L168+1,0)) -> 0 | N168: =IF(AND(MONTH(N$7)=1,N$6=YEAR(Inputs!$E$180)),1,IF(M168>0,M168+1,0)) -> 0
C169: Opening balance | D169: NGN | F169: =Inputs!E176 -> 0 | I169: =H173 -> 0 | J169: =I173 -> 0 | K169: 0 | L169: 0 | M169: 0 | N169: 0
C170: Additions | D170: NGN | E170: Grace | F170: Tenor | I170: =IF(AND(Inputs!$E$180<Model!J$7,Inputs!$E$180>=Model!I$7),Model!$F$169,0) -> 0 | J170: =IF(AND(Inputs!$E$180<Model!K$7,Inputs!$E$180>=Model!J$7),Model!$F$169,0) -> 0 | K170: =IF(AND(Inputs!$E$180<Model!L$7,Inputs!$E$180>=Model!K$7),Model!$F$169,0) -> 0 | L170: =IF(AND(Inputs!$E$180<Model!M$7,Inputs!$E$180>=Model!L$7),Model!$F$169,0) -> 0 | M170: =IF(AND(Inputs!$E$180<Model!N$7,Inputs!$E$180>=Model!M$7),Model!$F$169,0) -> 0 | N170: =IF(AND(Inputs!$E$180<Model!O$7,Inputs!$E$180>=Model!N$7),Model!$F$169,0) -> 0
C171: Repayment flag | E171: =Inputs!E178 /12 -> 0 | F171: =Inputs!E179/12 -> 0 | I171: =IF(I168<=$E171,0,IF(I168>$F171,0,1)) -> 0 | J171: 0 | K171: 0 | L171: 0 | M171: 0 | N171: =IF(N168<=$E171,0,IF(N168>$F171,0,1)) -> 0
C172: Prinicipal payments | D172: NGN | F172: =F171-E171 -> 0 | I172: =IF(I171=1,$F169/$F172,0) -> 0 | J172: 0 | K172: 0 | L172: 0 | M172: 0 | N172: =IF(N171=1,$F169/$F172,0) -> 0
C173: Ending balance | D173: NGN | I173: =I169+I170-I172 -> 0 | J173: 0 | K173: 0 | L173: 0 | M173: 0 | N173: =N169+N170-N172 -> 0
C174: Interest paid | D174: NGN | F174: =Inputs!E177 -> 0 | I174: =$F$174*I173 -> 0 | J174: 0 | K174: 0 | L174: 0 | M174: 0 | N174: 0
C176: =CONCATENATE(Inputs!E185," ","Debt") -> Debt
C177: Period count | I177: =IF(AND(MONTH(I$7)=1,I$6=YEAR(Inputs!$E$190)),1,IF(H177>0,H177+1,0)) -> 1 | J177: =IF(AND(MONTH(J$7)=1,J$6=YEAR(Inputs!$E$190)),1,IF(I177>0,I177+1,0)) -> 2 | K177: =IF(AND(MONTH(K$7)=1,K$6=YEAR(Inputs!$E$190)),1,IF(J177>0,J177+1,0)) -> 3 | L177: =IF(AND(MONTH(L$7)=1,L$6=YEAR(Inputs!$E$190)),1,IF(K177>0,K177+1,0)) -> 4 | M177: =IF(AND(MONTH(M$7)=1,M$6=YEAR(Inputs!$E$190)),1,IF(L177>0,L177+1,0)) -> 5 | N177: =IF(AND(MONTH(N$7)=1,N$6=YEAR(Inputs!$E$190)),1,IF(M177>0,M177+1,0)) -> 6
C178: Opening balance | D178: USD | F178: =Inputs!E186 -> 50000 | I178: =H182 -> 0 | J178: =I182 -> 50000 | K178: =J182 -> 37500 | L178: =K182 -> 25000 | M178: =L182 -> 12500 | N178: 0
C179: Additions | D179: USD | E179: Grace | F179: Tenor | I179: =IF(AND(Inputs!$E$190<Model!J$7,Inputs!$E$190>=Model!I$7),Model!$F$178,0) -> 50000 | J179: =IF(AND(Inputs!$E$190<Model!K$7,Inputs!$E$190>=Model!J$7),Model!$F$178,0) -> 0 | K179: =IF(AND(Inputs!$E$190<Model!L$7,Inputs!$E$190>=Model!K$7),Model!$F$178,0) -> 0 | L179: =IF(AND(Inputs!$E$190<Model!M$7,Inputs!$E$190>=Model!L$7),Model!$F$178,0) -> 0 | M179: =IF(AND(Inputs!$E$190<Model!N$7,Inputs!$E$190>=Model!M$7),Model!$F$178,0) -> 0 | N179: =IF(AND(Inputs!$E$190<Model!O$7,Inputs!$E$190>=Model!N$7),Model!$F$178,0) -> 0
C180: Repayment flag | E180: =Inputs!E188 /12 -> 1 | F180: =Inputs!E189/12 -> 5 | I180: =IF(I177<=$E180,0,IF(I177>$F180,0,1)) -> 0 | J180: 1 | K180: 1 | L180: 1 | M180: 1 | N180: =IF(N177<=$E180,0,IF(N177>$F180,0,1)) -> 0
C181: Prinicipal payments | D181: USD | F181: =F180-E180 -> 4 | I181: =IF(I180=1,$F178/$F181,0) -> 0 | J181: 12500 | K181: 12500 | L181: 12500 | M181: 12500 | N181: =IF(N180=1,$F178/$F181,0) -> 0
C182: Ending balance | D182: USD | I182: =I178+I179-I181 -> 50000 | J182: 37500 | K182: 25000 | L182: 12500 | M182: 0 | N182: =N178+N179-N181 -> 0
C183: Interest paid | D183: USD | F183: =Inputs!E187 -> 0.05 | I183: =$F$183*I182 -> 2500 | J183: =$F$183*J182 -> 1875 | K183: 1250 | L183: 625 | M183: 0 | N183: 0
C185: Opening balance USD debt | D185: NGN | I185: =H188 -> 0 | J185: =I188 -> 20000000 | K185: 16200000 | L185: 11664000 | M185: 6298560 | N185: 0
C186: Additions USD debt | D186: NGN | I186: =I179*I11 -> 20000000 | J186: =J179*J11 -> 0 | K186: 0 | L186: 0 | M186: 0 | N186: 0
C187: Prinicipal payments USD debt | D187: NGN | I187: =I181*I11 -> 0 | J187: 5400000 | K187: 5832000 | L187: 6298560 | M187: 6802444.8 | N187: 0
C188: Ending balance USD debt | D188: NGN | I188: =I182*I11 -> 20000000 | J188: 16200000 | K188: 11664000 | L188: 6298560 | M188: 0 | N188: 0
C189: FX (profit)/loss USD debt | D189: NGN | I189: =I188-SUM(I185:I186,-I187) -> 0 | J189: =J188-SUM(J185:J186,-J187) -> 1600000 | K189: 1296000 | L189: 933120 | M189: 503884.8 | N189: 0
C190: Interest paid | D190: NGN | I190: =I183*I11 -> 1000000 | J190: 810000 | K190: 583200 | L190: 314928 | M190: 0 | N190: 0
A192: ● | C192: Outputs
C194: Returns
C195: IRR | D195: % | F195: =IFERROR(IRR(I195:N195),0) -> 0 | I195: =I106 -> 20480.08699 | J195: 103073.6537 | K195: 152919.1742 | L195: 206544.1973 | M195: 271929.2827 | N195: 353853.9752
A196: x

Sheet Graph Calcs
A1: Graph Calculations
A2: =Name_Model -> FGN 5M Solar Connections Facility - SHS
I4: =CONCATENATE("Annual summary"," ",Inputs!$E$9) -> Annual summary USD | P4: =P6 -> 0
C5: Year | I5: =Start_Year -> 2020 | J5: =I5+1 -> 2021 | K5: =J5+1 -> 2022 | L5: 2023 | M5: 2024 | N5: 2025
A7: x | C7: Graphs
C9: Income Statement
C10: Revenue | D10: =Inputs!$E$9 -> USD | I10: =Model!I$16 -> 890000 | J10: =Model!J$16 -> 1246000 | K10: =Model!K$16 -> 1682100 | L10: =Model!L$16 -> 2186730 | M10: =Model!M$16 -> 2842749 | N10: =Model!N$16 -> 3411298.8
C11: Net income | D11: =Inputs!$E$9 -> USD | I11: =Model!I$42 -> 111389.95 | J11: =Model!J$42 -> 156648.71 | K11: =Model!K$42 -> 212705.0838 | L11: =Model!L$42 -> 269771.7708 | M11: =Model!M$42 -> 350770.4959 | N11: =Model!N$42 -> 413361.7903
C12: Tax | D12: =Inputs!$E$9 -> USD | I12: =-Model!I40 -> 52418.8 | J12: =-Model!J40 -> 73717.04 | K12: =-Model!K40 -> 100096.51 | L12: =-Model!L40 -> 126951.4216 | M12: =-Model!M40 -> 165068.4686 | N12: =-Model!N40 -> 194523.1954
C13: Interest & FX depreciation | D13: =Inputs!$E$9 -> USD | I13: =-(Model!I35+Model!I36) -> 2500 | J13: =-(Model!J35+Model!J36) -> 1875 | K13: =-(Model!K35+Model!K36) -> 1250 | L13: =-(Model!L35+Model!L36) -> 625 | M13: =-(Model!M35+Model!M36) -> 0 | N13: =-(Model!N35+Model!N36) -> 0
C14: Depreciation | D14: =Inputs!$E$9 -> USD | I14: =-Model!I31 -> 300 | J14: =-Model!J31 -> 270 | K14: =-Model!K31 -> 729.1111111 | L14: =-Model!L31 -> 988.4187929 | M14: =-Model!M31 -> 889.5769136 | N14: =-Model!N31 -> 800.6192222
C15: OPEX & VAT | D15: =Inputs!$E$9 -> USD | I15: =-(Model!I25+Model!I27) -> 100216.25 | J15: =-(Model!J25+Model!J27) -> 141044.25 | K15: =-(Model!K25+Model!K27) -> 189518.545 | L15: =-(Model!L25+Model!L27) -> 257252.4139 | M15: =-(Model!M25+Model!M27) -> 335537.1911 | N15: =-(Model!N25+Model!N27) -> 414033.2741
C16: COGS | D16: =Inputs!$E$9 -> USD | I16: =-Model!I17 -> 623175 | J16: =-Model!J17 -> 872445 | K16: =-Model!K17 -> 1177800.75 | L16: =-Model!L17 -> 1531140.975 | M16: =-Model!M17 -> 1990483.268 | N16: =-Model!N17 -> 2388579.921
C17: Net margin | D17: % | I17: ='Graph Calcs'!I11/'Graph Calcs'!I10 -> 0.1251572472 | J17: ='Graph Calcs'!J11/'Graph Calcs'!J10 -> 0.1257212761 | K17: ='Graph Calcs'!K11/'Graph Calcs'!K10 -> 0.1264521038 | L17: ='Graph Calcs'!L11/'Graph Calcs'!L10 -> 0.1233676635 | M17: ='Graph Calcs'!M11/'Graph Calcs'!M10 -> 0.1233913004 | N17: ='Graph Calcs'!N11/'Graph Calcs'!N10 -> 0.1211743135
C19: Cashflow Statement
C20: Operating activities | D20: =Inputs!$E$9 -> USD | I20: =Model!I84 -> 20480.08699 | J20: =Model!J84 -> 120434.7648 | K20: =Model!K84 -> 168741.3621 | L20: =Model!L84 -> 219044.1973 | M20: =Model!M84 -> 284429.2827 | N20: =Model!N84 -> 355895.7248
C21: CAPEX | D21: =Inputs!$E$9 -> USD | I21: =Model!I87 -> 0 | J21: =Model!J87 -> -4861.111111 | K21: =Model!K87 -> -3322.187929 | L21: =Model!L87 -> 0 | M21: =Model!M87 -> 0 | N21: =Model!N87 -> -2041.749591
C22: Debt repayment | D22: =Inputs!$E$9 -> USD | I22: =Model!I193+Model!I94 -> 0 | J22: =Model!J193+Model!J94 -> -12500 | K22: =Model!K193+Model!K94 -> -12500 | L22: =Model!L193+Model!L94 -> -12500 | M22: =Model!M193+Model!M94 -> -12500 | N22: =Model!N193+Model!N94 -> 0
C23: Debt issuance | D23: =Inputs!$E$9 -> USD | I23: =Model!I195+Model!I96 -> 70480.08699 | J23: =Model!J195+Model!J96 -> 103073.6537 | K23: =Model!K195+Model!K96 -> 152919.1742 | L23: =Model!L195+Model!L96 -> 206544.1973 | M23: =Model!M195+Model!M96 -> 271929.2827 | N23: =Model!N195+Model!N96 -> 353853.9752
C24: Equity or grants | D24: =Inputs!$E$9 -> USD | I24: =Model!I67+Model!I68 -> 54025 | J24: =Model!J67+Model!J68 -> 54025 | K24: =Model!K67+Model!K68 -> 54025 | L24: =Model!L67+Model!L68 -> 54025 | M24: =Model!M67+Model!M68 -> 54025 | N24: =Model!N67+Model!N68 -> 54025
C25: End cash | D25: =Inputs!$E$9 -> USD | I25: =Model!I103 -> 122605.087 | J25: =Model!J103 -> 225678.7407 | K25: =Model!K103 -> 378597.9148 | L25: =Model!L103 -> 585142.1121 | M25: =Model!M103 -> 857071.3948 | N25: =Model!N103 -> 1210925.37
C27: Sales & Working Capital need
C28: Sales | D28: =Inputs!$E$9 -> USD | I28: =Model!I16 -> 890000 | J28: =Model!J16 -> 1246000 | K28: =Model!K16 -> 1682100 | L28: =Model!L16 -> 2186730 | M28: =Model!M16 -> 2842749 | N28: =Model!N16 -> 3411298.8
C29: Working capital | D29: =Inputs!$E$9 -> USD | I29: =Model!I158 -> 91209.86301 | J29: =Model!J158 -> 127693.8082 | K29: =Model!K158 -> 172386.6411 | L29: =Model!L158 -> 224102.6334 | M29: =Model!M158 -> 291333.4235 | N29: =Model!N158 -> 349600.1081
C31: OPEX Breakdown
C32: Total OPEX | D32: =Inputs!$E$9 -> USD | I32: =-Model!I25 -> 33466.25 | J32: =-Model!J25 -> 47594.25 | K32: =-Model!K25 -> 63361.045 | L32: =-Model!L25 -> 93247.66385 | M32: =-Model!M25 -> 122331.0161 | N32: =-Model!N25 -> 158185.8641
C34: Equity payback graph
C35: Equity invested | D35: =Inputs!$E$9 -> USD | I35: =Model!I67 -> 4025 | J35: =Model!J67 -> 4025 | K35: =Model!K67 -> 4025 | L35: =Model!L67 -> 4025 | M35: =Model!M67 -> 4025 | N35: =Model!N67 -> 4025
C36: Distributions to equity | D36: =Inputs!$E$9 -> USD | I36: =Model!I106 -> 20480.08699 | J36: =Model!J106 -> 103073.6537 | K36: =Model!K106 -> 152919.1742 | L36: =Model!L106 -> 206544.1973 | M36: =Model!M106 -> 271929.2827 | N36: =Model!N106 -> 353853.9752

Sheet Legend
C2: Style legend
C6: Style | E6: Design | G6: Comment
C8: Header1 | E8: Header1
C10: Header2 | E10: Header2
C12: Header3 | E12: Header3
C14: Assumption | E14: 100 | G14: A user driven input
C16: Technical_Input | E16: 100 | G16: A model input that should not be changed to protect the integrity of the model
C18: Empty_Cell | G18: A cell that is left intentionally blank to avoid the risk of error
C20: InSheet | E20: 100 | G20: A link within the worksheet or an interim calculation step
C22: OffSheet | E22: 100 | G22: A link to another worksheet to minimise the number of inter-worksheet references
C24: Line_SubTotal | E24: 100 | G24: The sum of elements in the table immediately above
C26: Line_Total | E26: 100 | G26: The sum of elements above, including sub-totals
C28: Unit / Info | E28: NGN | G28: Explanatory text showing helpful information and the units/dimensions of the calculations
C30: Line_Summary | E30: 100 | G30: The SUM() of everything to the right
C32: Table_Header | E32: Qtr | G32: Header of a table or of an off-sheet reference
C34: Flag | E34: 1 | G34: Binary flag - set up as a 'Style' and updated with conditional formatting
C36: Line_ClosingBal | E36: 100 | G36: The closing balance of a control account

Sheet Names
C2: Names and Lists
C5: Name | E5: Value
C7: Entity Names
C8: Model Name | E8: FGN 5M Solar Connections Facility - SHS
C9: Company Name | E9: [Insert Company Name]
C10: Project Name | E10: [Insert Project Name, Location]
C12: Lists
C13: Price increase dropdown | E13: Inflation
E14: Inflation+ x%
C16: Year | E16: =Start_Year -> 2020
E17: =E16+1 -> 2021
E18: =E17+1 -> 2022
E19: 2023
E20: 2024
E21: 2025
C23: Scenario | E23: Upside
E24: Base
E25: Downside
